bitfinex/quotes_SOLUSD_20240918
["timestamp","ask_amount","ask_price","bid_price","bid_amount"]
[1726657242716,15.56244149,129.73,129.65,15.5418]
[1726657242886,4.04211746,129.72,129.65,15.5418]
[1726657243699,23.776884,129.71,129.65,15.5418]
[1726657248701,19.58844989,129.73,129.59,28.09493048]
[1726657248702,8.06812586,129.73,129.68,15.475]
[1726657249017,4.04211746,129.76,129.68,15.475]
[1726657250024,23.776884,129.73,129.68,15.475]
[1726657250220,27.81900146,129.73,129.68,15.475]
[1726657250419,23.776884,129.71,129.66,6.6304]
[1726657251703,27.81900146,129.71,129.66,6.6304]
[1726657255900,4.04211746,129.71,129.67,12.53648941]
[1726657256103,4.04211746,129.76,129.69,6.4486]
[1726657256422,42.33373892,129.77,129.7,1.54180174]
[1726657257201,42.33373892,129.77,129.7,1.54170332]
[1726657257523,38.29162146,129.77,129.69,17.44258324]
[1726657258126,23.776884,129.76,129.69,17.44258324]
[1726657259527,23.776884,129.76,129.68,16.5309]
[1726657259528,4.04211746,129.83,129.75,6.1569]
[1726657259715,5.38465662,129.82,129.75,6.1569]
[1726657260028,13.43328878,129.82,129.75,6.1569]
[1726657260619,20.0,129.81,129.75,6.1569]
[1726657260916,23.776884,129.8,129.75,6.1569]
[1726657264719,20.0,129.79,129.75,6.1569]
[1726657265026,23.776884,129.78,129.72,6.3104]
[1726657265215,20.0,129.77,129.72,6.3104]
[1726657265415,23.776884,129.76,129.72,6.3104]
[1726657265932,23.776884,129.74,129.71,15.2532]
[1726657266241,23.776884,129.74,129.69,6.1397]
[1726657266242,20.0,129.73,129.69,6.1397]
[1726657266534,23.776884,129.72,129.69,6.1397]
[1726657269735,7.08156625,129.78,129.69,7.68170394]
[1726657269940,4.04211746,129.78,129.69,7.68170394]
[1726657270243,8.03440434,129.8,129.69,7.68170394]
[1726657270719,11.04257756,129.8,129.69,6.1397]
[1726657271232,20.0,129.79,129.69,6.1397]
[1726657271946,23.776884,129.76,129.69,6.1397]
[1726657272515,23.776884,129.76,129.69,8.1397]
[1726657276412,20.0,129.79,129.69,8.1397]
[1726657277642,20.0,129.77,129.69,8.1397]
[1726657277820,23.776884,129.78,129.69,8.1397]
[1726657278522,23.776884,129.79,129.69,8.1397]
[1726657278724,23.776884,129.77,129.69,8.1397]
[1726657281525,23.776884,129.77,129.7,1.54166207]
[1726657281734,23.776884,129.77,129.69,8.1397]
[1726657285148,23.776884,129.77,129.7,16.2193]
[1726657287725,23.776884,129.77,129.7,27.1938433]
[1726657289529,23.776884,129.77,129.71,1.54169887]
[1726657290227,8.03484506,129.78,129.73,15.0879]
[1726657290442,1.34262193,129.8,129.73,15.0879]
[1726657291245,1.34262193,129.8,129.75,6.3674]
[1726657291433,1.34262193,129.8,129.76,15.8345]
[1726657291759,27.18653819,129.82,129.77,12.51549463]
[1726657292053,5.38500735,129.85,129.76,15.8345]
[1726657292256,1.34288989,129.85,129.76,15.8345]
[1726657292450,24.47405958,129.85,129.76,15.8345]
[1726657293854,23.776884,129.84,129.76,15.8345]
[1726657294231,23.776884,129.82,129.76,15.8345]
[1726657298368,23.776884,129.82,129.76,17.37551998]
[1726657299569,23.776884,129.82,129.77,1.54101846]
[1726657300178,23.776884,129.82,129.77,1.54097236]
[1726657300470,23.776884,129.82,129.76,15.8345]
[1726657300642,23.776884,129.82,129.77,1.5409845]
[1726657302056,23.776884,129.82,129.76,15.8345]
[1726657302648,23.776884,129.82,129.77,1.54098169]
[1726657302849,23.776884,129.82,129.76,17.8345]
[1726657308979,23.776884,129.82,129.76,19.37548304]
[1726657309162,23.776884,129.82,129.76,17.8345]
[1726657309779,23.776884,129.82,129.76,19.37548286]
[1726657309968,23.776884,129.82,129.77,1.54098248]
[1726657310780,23.776884,129.82,129.78,6.3217]
[1726657310972,23.776884,129.82,129.79,15.4605]
[1726657317664,23.776884,129.82,129.79,17.00130836]
[1726657317866,23.776884,129.82,129.79,27.96344362]
[1726657318079,8.03009671,129.85,129.79,27.96344362]
[1726657318271,20.0,129.87,129.79,26.42263526]
[1726657319486,23.776884,129.86,129.79,26.42263526]
[1726657320670,23.776884,129.86,129.79,27.96329543]
[1726657320878,23.776884,129.86,129.8,1.54066017]
[1726657321871,23.776884,129.86,129.79,26.42263526]
[1726657322687,43.776884,129.87,129.79,26.42263526]
[1726657326882,43.776884,129.87,129.81,6.0501]
[1726657328981,23.776884,129.87,129.81,6.0501]
[1726657334279,23.776884,129.87,129.82,16.1614]
[1726657337781,23.776884,129.87,129.82,18.1614]
[1726657339388,12.3661892,129.88,129.84,16.6461]
[1726657339705,18.04576988,129.93,129.87,23.2011]
[1726657340077,8.01521918,129.92,129.87,23.2011]
[1726657340781,20.0,129.91,129.87,23.2011]
[1726657343090,23.776884,129.9,129.87,23.2011]
[1726657343291,8.01521918,129.92,129.87,23.2011]
[1726657343493,30.0,129.88,129.87,23.2011]
[1726657347593,53.776884,129.88,129.83,21.4911]
[1726657347789,23.776884,129.87,129.83,21.4911]
[1726657348287,30.0,129.86,129.83,21.4911]
[1726657349313,23.776884,129.85,129.83,6.3282]
[1726657349489,30.0,129.84,129.82,2.0]
[1726657349690,23.776884,129.83,129.82,2.0]
[1726657350411,53.776884,129.83,129.82,2.0]
[1726657360711,53.776884,129.83,129.79,8.5842]
[1726657360920,53.776884,129.83,129.79,2.0]
[1726657360921,23.776884,129.81,129.79,2.0]
[1726657361924,30.0,129.8,129.79,2.0]
[1726657369127,53.776884,129.8,129.79,2.0]
[1726657374936,53.776884,129.8,129.76,2.0]
[1726657374937,23.776884,129.79,129.76,2.0]
[1726657375137,30.0,129.78,129.76,2.0]
[1726657375917,23.776884,129.77,129.76,2.0]
[1726657376217,23.776884,129.77,129.72,6.4096]
[1726657376218,53.776884,129.77,129.72,6.4096]
[1726657376622,53.776884,129.77,129.71,15.6204]
[1726657377139,23.776884,129.74,129.71,15.6204]
[1726657377636,30.0,129.75,129.71,15.6204]
[1726657378212,30.0,129.73,129.71,15.6204]
[1726657378622,43.776884,129.78,129.71,15.6204]
[1726657382834,43.776884,129.78,129.72,1.54178982]
[1726657383034,43.776884,129.78,129.73,6.2081]
[1726657383210,8.03152607,129.8,129.73,6.2081]
[1726657383538,1.34279061,129.78,129.74,1.54157773]
[1726657383724,1.34279061,129.78,129.75,16.6641]
[1726657383916,8.03152607,129.8,129.75,16.6641]
[1726657384119,3.00134924,129.81,129.75,16.6641]
[1726657384336,1.34245622,129.78,129.75,16.6641]
[1726657384518,22.00115881,129.85,129.75,16.6641]
[1726657384519,8.02005883,129.83,129.75,16.6641]
[1726657385611,23.776884,129.82,129.75,16.6641]
[1726657390724,23.776884,129.8,129.75,16.6641]
[1726657393945,20.0,129.82,129.75,16.6641]
[1726657394126,20.0,129.82,129.76,6.4493]
[1726657396151,23.776884,129.81,129.76,6.4493]
[1726657397051,23.776884,129.82,129.76,6.4493]
[1726657398948,23.776884,129.8,129.76,6.4493]
[1726657405155,23.776884,129.78,129.76,6.4493]
[1726657408946,1.34271413,129.79,129.76,6.4493]
[1726657409346,20.0,129.81,129.76,6.4493]
[1726657409546,23.776884,129.8,129.76,6.4493]
[1726657418779,23.776884,129.81,129.76,6.4493]
[1726657419988,31.79029707,129.81,129.76,6.4493]
[1726657422186,35.81496494,129.81,129.76,6.4493]
[1726657422885,20.0,129.8,129.76,6.4493]
[1726657423185,23.776884,129.79,129.76,6.4493]
[1726657424389,23.776884,129.8,129.76,6.4493]
[1726657431697,23.776884,129.81,129.76,6.4493]
[1726657435498,23.776884,129.81,129.76,7.99043806]
[1726657435701,4.02466787,129.82,129.77,1.54107747]
[1726657435999,4.02466787,129.82,129.78,15.7038]
[1726657437793,4.02466787,129.82,129.79,6.4738]
[1726657439309,23.776884,129.82,129.79,6.4738]
[1726657442712,23.776884,129.8,129.76,2.0]
[1726657443084,23.776884,129.78,129.76,2.0]
[1726657445604,23.776884,129.78,129.72,21.5513]
[1726657445605,23.776884,129.76,129.72,21.5513]
[1726657446098,31.1321317,129.76,129.72,21.5513]
[1726657446684,31.1321317,129.76,129.72,6.551]
[1726657446909,31.1321317,129.76,129.7,9.47428085]
[1726657447711,23.776884,129.74,129.7,9.47428085]
[1726657448299,23.776884,129.74,129.69,23.3235]
[1726657453588,31.79397777,129.74,129.69,23.3235]
[1726657456307,33.1372573,129.74,129.69,23.3235]
[1726657461124,33.1372573,129.74,129.69,2.0]
[1726657461707,23.776884,129.72,129.69,2.0]
[1726657466911,23.776884,129.73,129.69,2.0]
[1726657472420,23.776884,129.71,129.69,2.0]
[1726657475221,8.69848312,129.75,129.69,2.0]
[1726657475625,16.72174806,129.75,129.69,2.0]
[1726657476454,23.776884,129.74,129.69,2.0]
[1726657477856,23.776884,129.72,129.69,2.0]
[1726657481855,26.85657599,129.72,129.69,2.0]
[1726657485939,23.776884,129.7,129.69,2.0]
[1726657490051,8.02236697,129.71,129.69,2.0]
[1726657491461,23.776884,129.7,129.69,2.0]
[1726657503558,23.776884,129.68,129.62,6.0753]
[1726657504264,31.79526496,129.68,129.62,6.0753]
[1726657505131,30.0,129.66,129.62,6.0753]
[1726657505339,23.776884,129.65,129.62,6.0753]
[1726657506241,30.0,129.64,129.62,6.0753]
[1726657508360,30.0,129.64,129.61,15.9386]
[1726657509261,30.0,129.64,129.59,6.0121]
[1726657509441,23.776884,129.63,129.59,6.0121]
[1726657509643,30.0,129.61,129.59,6.0121]
[1726657513649,23.776884,129.64,129.59,6.0121]
[1726657520070,23.776884,129.64,129.59,7.55522725]
[1726657521574,23.776884,129.64,129.59,6.0121]
[1726657529105,31.78905468,129.64,129.59,6.0121]
[1726657530301,31.78905468,129.64,129.58,16.5921]
[1726657530476,30.0,129.6,129.58,16.5921]
[1726657533789,23.776884,129.62,129.58,16.5921]
[1726657536697,23.776884,129.62,129.56,6.1322]
[1726657537199,30.0,129.59,129.56,6.1322]
[1726657540114,23.776884,129.6,129.56,6.1322]
[1726657547714,23.776884,129.57,129.56,6.1322]
[1726657549693,8.01832643,129.61,129.56,6.1322]
[1726657551187,23.776884,129.6,129.56,6.1322]
[1726657558716,1.34453561,129.61,129.56,7.67575095]
[1726657558928,1.34453561,129.61,129.56,6.1322]
[1726657561323,23.776884,129.6,129.56,6.1322]
[1726657562929,1.34453561,129.61,129.57,16.6053]
[1726657563216,27.10582276,129.65,129.57,16.6053]
[1726657563523,8.02936862,129.62,129.57,16.6053]
[1726657563703,21.3448013,129.63,129.57,16.6053]
[1726657563908,29.31733595,129.63,129.57,16.6053]
[1726657564216,23.776884,129.61,129.57,16.6053]
[1726657565824,23.776884,129.61,129.57,18.14891478]
[1726657566198,23.776884,129.62,129.57,16.6053]
[1726657576799,36.00290547,129.63,129.57,16.6053]
[1726657577203,16.00290547,129.63,129.57,16.6053]
[1726657578116,23.776884,129.62,129.57,16.6053]
[1726657581025,20.0,129.61,129.57,16.6053]
[1726657581208,23.776884,129.6,129.57,16.6053]
[1726657588522,29.37236241,129.61,129.57,16.6053]
[1726657588722,20.0,129.62,129.57,16.6053]
[1726657588920,23.776884,129.61,129.57,16.6053]
[1726657591015,16.00168966,129.63,129.58,18.59491375]
[1726657591216,1.34525471,129.64,129.59,15.5262]
[1726657591425,1.34525471,129.64,129.59,26.48833526]
[1726657591627,1.34525471,129.64,129.59,15.5262]
[1726657596219,1.34525471,129.64,129.6,1.54308222]
[1726657596529,1.34525471,129.64,129.61,6.017]
[1726657600931,0.84525471,129.64,129.61,6.017]
[1726657601250,23.776884,129.65,129.61,6.017]
[1726657602122,23.776884,129.63,129.61,6.017]
[1726657602629,23.776884,129.64,129.61,6.017]
[1726657620854,23.776884,129.65,129.61,6.017]
[1726657621831,7.97261196,129.66,129.61,6.017]
[1726657623750,43.776884,129.65,129.61,6.017]
[1726657623954,51.74949596,129.65,129.59,15.5262]
[1726657624144,43.776884,129.63,129.59,15.5262]
[1726657624344,51.74949596,129.63,129.59,15.5262]
[1726657630856,27.97261196,129.63,129.59,15.5262]
[1726657631162,7.97261196,129.63,129.59,15.5262]
[1726657631344,7.97261196,129.63,129.6,7.6747976]
[1726657631548,7.97261196,129.63,129.6,7.6746175]
[1726657631745,7.97261196,129.63,129.62,16.4668]
[1726657631960,8.04933574,129.7,129.62,28.97164468]
[1726657631961,7.97261196,129.67,129.62,28.97164468]
[1726657632167,7.97261196,129.67,129.63,6.6229]
[1726657632460,7.97261196,129.67,129.64,1.5425464]
[1726657633162,7.97261196,129.67,129.63,8.16543653]
[1726657633464,7.97261196,129.67,129.63,6.6229]
[1726657634251,7.97261196,129.67,129.63,8.16548591]
[1726657634959,7.97261196,129.67,129.63,6.6229]
[1726657635161,8.03341183,129.71,129.66,6.471]
[1726657635375,7.97261196,129.72,129.66,6.471]
[1726657636644,43.776884,129.71,129.66,6.471]
[1726657640174,43.776884,129.71,129.66,17.43313526]
[1726657640376,43.776884,129.71,129.66,6.471]
[1726657650552,51.74949596,129.71,129.64,15.9205]
[1726657650878,43.776884,129.69,129.64,15.9205]
[1726657651087,43.776884,129.69,129.63,6.4675]
[1726657651088,43.776884,129.67,129.63,6.4675]
[1726657651382,7.97261196,129.67,129.63,6.4675]
[1726657651557,43.776884,129.66,129.63,6.4675]
[1726657652679,43.776884,129.66,129.61,16.2575]
[1726657656085,46.89748423,129.66,129.61,16.2575]
[1726657659877,43.776884,129.66,129.61,16.2575]
[1726657662174,43.776884,129.66,129.6,6.0194]
[1726657662476,43.776884,129.66,129.57,21.551]
[1726657662477,43.776884,129.64,129.57,21.551]
[1726657662683,23.776884,129.62,129.57,21.551]
[1726657662854,23.776884,129.6,129.54,21.551]
[1726657663459,20.0,129.59,129.54,21.551]
[1726657663682,23.776884,129.58,129.54,21.551]
[1726657666766,30.0,129.56,129.54,21.551]
[1726657668165,30.0,129.56,129.54,6.312]
[1726657670078,20.0,129.55,129.51,15.6611]
[1726657670278,43.776884,129.55,129.51,15.6611]
[1726657670590,30.0,129.53,129.51,15.6611]
[1726657670885,30.0,129.53,129.51,17.20527783]
[1726657671261,30.0,129.53,129.52,1.5440108]
[1726657671687,30.0,129.53,129.51,26.62323526]
[1726657671989,7.97261196,129.58,129.51,26.62323526]
[1726657671990,20.0,129.57,129.51,26.62323526]
[1726657674671,43.776884,129.6,129.52,12.50596912]
[1726657675597,43.776884,129.6,129.53,6.4609]
[1726657675770,43.776884,129.6,129.54,1.54366949]
[1726657676086,43.776884,129.6,129.53,6.4609]
[1726657676880,43.776884,129.6,129.54,1.5437053]
[1726657677274,43.776884,129.6,129.54,1.54367814]
[1726657677495,43.776884,129.6,129.53,17.42303526]
[1726657679599,20.0,129.6,129.54,15.1012]
[1726657684075,23.776884,129.59,129.54,15.1012]
[1726657684291,20.0,129.58,129.54,15.1012]
[1726657689296,23.776884,129.6,129.54,15.1012]
[1726657689490,20.0,129.59,129.54,15.1012]
[1726657690113,20.0,129.6,129.55,1.54358778]
[1726657693000,20.0,129.6,129.54,15.1012]
[1726657693889,20.0,129.6,129.54,26.06333526]
[1726657694084,20.0,129.6,129.56,6.3285]
[1726657694298,20.0,129.6,129.57,1.54339558]
[1726657696516,20.0,129.6,129.56,6.3285]
[1726657697088,20.0,129.6,129.57,1.54336293]
[1726657697313,7.97261196,129.61,129.57,1.54336293]
[1726657697528,43.776884,129.63,129.58,15.3461]
[1726657698791,20.0,129.63,129.58,15.3461]
[1726657702708,7.97261196,129.64,129.58,15.3461]
[1726657704027,7.97261196,129.64,129.6,6.6512]
[1726657705300,8.03530412,129.66,129.62,15.4766]
[1726657705618,9.3171281,129.68,129.62,15.4766]
[1726657705619,7.97261196,129.68,129.63,1.54276169]
[1726657706005,7.97261196,129.68,129.62,15.4766]
[1726657708013,7.97261196,129.68,129.63,6.3258]
[1726657710228,7.97261196,129.68,129.63,13.8228285]
[1726657713003,7.97261196,129.68,129.63,24.78496376]
[1726657713203,23.776884,129.7,129.63,24.78496376]
[1726657713417,8.04205573,129.71,129.64,1.54240727]
[1726657713621,8.04205573,129.71,129.63,24.78496376]
[1726657713812,8.04205573,129.71,129.64,1.54240351]
[1726657714131,8.04205573,129.71,129.65,16.1467]
[1726657721213,23.776884,129.71,129.65,16.1467]
[1726657725242,23.776884,129.71,129.65,23.3910541]
[1726657727339,31.74949596,129.71,129.65,23.3910541]
[1726657731716,39.78918817,129.71,129.65,23.3910541]
[1726657739730,39.78918817,129.71,129.65,22.5010541]
[1726657741857,39.78918817,129.71,129.66,6.3397]
[1726657742027,31.74949596,129.71,129.66,6.3397]
[1726657747537,7.97261196,129.71,129.66,6.3397]
[1726657749152,7.97261196,129.71,129.67,12.50437839]
[1726657749335,8.03884522,129.73,129.69,6.5789]
[1726657749534,23.776884,129.73,129.69,6.5789]
[1726657749956,23.16265841,129.75,129.69,6.5789]
[1726657751362,23.776884,129.74,129.69,6.5789]
[1726657752838,27.79824305,129.74,129.69,6.5789]
[1726657753048,35.77085501,129.74,129.69,6.5789]
[1726657753659,31.74949596,129.74,129.69,6.5789]
[1726657753862,23.776884,129.72,129.69,6.5789]
[1726657754071,20.0,129.71,129.68,15.0735]
[1726657754365,23.776884,129.7,129.65,13.3820541]
[1726657754533,31.74949596,129.7,129.65,13.3820541]
[1726657754738,7.97261196,129.69,129.65,13.3820541]
[1726657755344,23.776884,129.68,129.65,13.3820541]
[1726657755538,31.74949596,129.68,129.65,13.3820541]
[1726657756047,7.97261196,129.67,129.65,13.3820541]
[1726657757741,7.97261196,129.67,129.65,7.2443541]
[1726657758068,23.776884,129.66,129.65,7.2443541]
[1726657758269,23.776884,129.66,129.63,0.2526744]
[1726657758270,20.0,129.65,129.63,0.2526744]
[1726657758446,23.776884,129.64,129.63,0.2526744]
[1726657763175,23.776884,129.64,129.59,0.2526744]
[1726657763176,23.776884,129.62,129.59,0.2526744]
[1726657763684,23.776884,129.6,129.59,0.2526744]
[1726657766272,23.776884,129.6,129.55,15.9655]
[1726657766273,53.776884,129.6,129.55,15.9655]
[1726657766793,23.776884,129.58,129.55,15.9655]
[1726657767605,43.776884,129.59,129.55,15.9655]
[1726657771400,23.776884,129.59,129.55,15.9655]
[1726657803197,9.38102154,129.6,129.55,15.9655]
[1726657809320,23.776884,129.59,129.55,15.9655]
[1726657813415,12.05790472,129.6,129.55,15.9655]
[1726657815203,4.02135905,129.59,129.55,15.9655]
[1726657821100,27.79824305,129.58,129.55,15.9655]
[1726657823815,4.02135905,129.58,129.55,15.9655]
[1726657826427,4.02135905,129.59,129.55,15.9655]
[1726657838555,12.05790472,129.6,129.55,15.9655]
[1726657839533,8.03654567,129.6,129.55,15.9655]
[1726657840057,12.05790472,129.6,129.55,15.9655]
[1726657841714,23.776884,129.59,129.55,15.9655]
[1726657841922,27.79824305,129.59,129.55,15.9655]
[1726657844269,27.79824305,129.59,129.54,6.5509]
[1726657844270,23.776884,129.56,129.54,6.5509]
[1726657844554,27.79824305,129.56,129.52,0.2526744]
[1726657844719,23.776884,129.54,129.52,0.2526744]
[1726657845119,27.79824305,129.54,129.52,0.2526744]
[1726657845337,23.776884,129.54,129.52,0.2526744]
[1726657848436,23.776884,129.55,129.52,0.2526744]
[1726657848636,23.776884,129.53,129.52,0.2526744]
[1726657851638,73.776884,129.53,129.52,0.2526744]
[1726657854231,43.776884,129.53,129.52,0.2526744]
[1726657858659,23.776884,129.53,129.52,0.2526744]
[1726657859665,8.07985295,129.54,129.52,0.2526744]
[1726657862070,7.97261196,129.55,129.52,0.2526744]
[1726657862446,43.776884,129.56,129.52,0.2526744]
[1726657865547,23.776884,129.56,129.52,0.2526744]
[1726657877090,23.776884,129.56,129.52,16.0635744]
[1726657892398,27.79824305,129.56,129.52,16.0635744]
[1726657893093,27.79824305,129.56,129.52,0.2526744]
[1726657893417,23.776884,129.54,129.52,0.2526744]
[1726657894198,27.79824305,129.54,129.52,0.2526744]
[1726657895025,23.776884,129.54,129.52,0.2526744]
[1726657895215,27.79824305,129.54,129.52,0.2526744]
[1726657905838,23.776884,129.54,129.52,0.2526744]
[1726657906721,27.79824305,129.54,129.52,0.2526744]
[1726657907936,23.776884,129.54,129.52,0.2526744]
[1726657909508,33.44687649,129.55,129.52,0.2526744]
[1726657909711,9.42551744,129.55,129.52,15.9245744]
[1726657909908,11.99397101,129.56,129.52,15.9245744]
[1726657912840,4.02135905,129.55,129.52,15.9245744]
[1726657913041,11.99397101,129.56,129.52,15.9245744]
[1726657913359,23.776884,129.54,129.52,15.9245744]
[1726657914048,4.02135905,129.55,129.52,15.9245744]
[1726657915653,11.99397101,129.56,129.52,15.9245744]
[1726657918328,23.776884,129.55,129.52,15.9245744]
[1726657918528,27.79824305,129.55,129.52,15.9245744]
[1726657918747,4.02135905,129.54,129.52,15.9245744]
[1726657919761,27.79824305,129.55,129.52,15.9245744]
[1726657921669,4.02135905,129.55,129.52,15.9245744]
[1726657922527,20.07218467,129.56,129.52,15.9245744]
[1726657923548,11.99397101,129.56,129.52,15.9245744]
[1726657933254,7.97261196,129.56,129.52,15.9245744]
[1726657937046,11.99397101,129.56,129.52,15.9245744]
[1726657942281,7.97261196,129.56,129.52,15.9245744]
[1726657942480,11.99397101,129.56,129.52,15.9245744]
[1726657944183,7.97261196,129.56,129.52,15.9245744]
[1726657952478,11.99397101,129.56,129.52,15.9245744]
[1726657963305,4.02135905,129.54,129.52,0.2526744]
[1726657964208,23.776884,129.53,129.52,0.2526744]
[1726657965008,23.776884,129.53,129.44,0.2526744]
[1726657965009,23.776884,129.49,129.44,0.2526744]
[1726657965193,23.776884,129.47,129.44,0.2526744]
[1726657965393,7.97976326,129.46,129.44,0.2526744]
[1726657968813,4.05825085,129.51,129.44,1.7976305]
[1726657968994,43.776884,129.51,129.44,1.7976305]
[1726657969187,43.776884,129.51,129.44,0.2526744]
[1726657970704,43.776884,129.51,129.44,4.9484492]
[1726657973597,50.16936057,129.51,129.44,4.9484492]
[1726657979506,78.80489917,129.51,129.44,4.9484492]
[1726657984132,50.16936057,129.51,129.44,4.9484492]
[1726657988519,76.92687298,129.51,129.44,4.9484492]
[1726657989127,56.92687298,129.51,129.44,4.9484492]
[1726657989515,56.92687298,129.51,129.45,22.5331]
[1726657989713,30.16936057,129.51,129.45,22.5331]
[1726657990802,30.16936057,129.51,129.46,1.54484528]
[1726657991118,30.16936057,129.51,129.45,22.5331]
[1726657991715,6.39247657,129.51,129.45,22.5331]
[1726657995530,35.38027305,129.52,129.45,22.5331]
[1726657995729,27.30160661,129.52,129.45,22.5331]
[1726657997641,23.776884,129.52,129.45,22.5331]
[1726658000928,31.84270054,129.52,129.45,22.5331]
[1726658007947,23.776884,129.5,129.45,22.5331]
[1726658009630,42.45529274,129.5,129.45,22.5331]
[1726658009830,23.776884,129.48,129.44,4.9484492]
[1726658010134,20.0,129.47,129.44,4.9484492]
[1726658010333,23.776884,129.46,129.44,4.9484492]
[1726658011030,32.98265382,129.46,129.44,4.9484492]
[1726658011226,41.04605082,129.46,129.44,4.9484492]
[1726658011832,41.04605082,129.46,129.39,23.5394498]
[1726658012868,30.0,129.45,129.39,23.5394498]
[1726658013154,23.776884,129.44,129.39,23.81734028]
[1726658013852,23.776884,129.45,129.39,23.81734028]
[1726658017954,47.83742014,129.45,129.39,23.81734028]
[1726658018157,54.23168454,129.45,129.39,23.81734028]
[1726658020747,23.776884,129.43,129.39,23.81734028]
[1726658021350,23.776884,129.43,129.39,23.82267788]
[1726658024133,39.86307714,129.45,129.39,23.82267788]
[1726658024470,4.05825085,129.48,129.39,23.82267788]
[1726658024471,4.05825085,129.51,129.43,10.96213526]
[1726658024764,1.34373942,129.51,129.44,22.0901]
[1726658025063,9.40829664,129.51,129.44,22.0901]
[1726658025563,8.06455722,129.51,129.45,33.05223526]
[1726658025858,21.50121746,129.52,129.45,33.05223526]
[1726658028069,8.31562558,129.54,129.45,33.05223526]
[1726658028452,30.06545955,129.54,129.45,33.05223526]
[1726658029167,23.776884,129.53,129.45,33.05223526]
[1726658030137,23.776884,129.53,129.45,22.0901]
[1726658036163,23.776884,129.53,129.46,6.5641]
[1726658036354,23.776884,129.53,129.47,15.3794]
[1726658039546,23.776884,129.53,129.48,6.0935]
[1726658039871,30.06545955,129.54,129.48,6.0935]
[1726658040263,30.06545955,129.54,129.49,15.3066]
[1726658040772,0.2526744,129.54,129.5,6.5544]
[1726658043175,0.2526744,129.54,129.5,8.09857541]
[1726658043365,0.2526744,129.54,129.52,6.3538]
[1726658043571,8.3068337,129.57,129.53,17.81605851]
[1726658043572,0.2526744,129.57,129.53,17.81605851]
[1726658048555,0.2526744,129.57,129.53,16.2722]
[1726658058669,0.2526744,129.57,129.53,16.32652148]
[1726658077716,0.2526744,129.57,129.53,17.87055234]
[1726658078019,0.2526744,129.57,129.53,16.32652148]
[1726658088231,0.2526744,129.57,129.53,17.87041887]
[1726658089220,0.2526744,129.57,129.53,16.32652148]
[1726658090931,0.2526744,129.57,129.53,17.8702799]
[1726658095560,0.2526744,129.57,129.53,16.32652148]
[1726658100851,0.2526744,129.57,129.54,1.54376506]
[1726658101057,0.2526744,129.57,129.55,1.54344267]
[1726658101238,0.2526744,129.57,129.56,6.1303]
[1726658106053,0.2526744,129.57,129.56,21.4051]
[1726658117854,0.2526744,129.57,129.56,32.36723526]
[1726658126684,0.2526744,129.57,129.56,21.4051]
[1726658126887,0.2526744,129.57,129.56,22.94833661]
[1726658133262,0.2526744,129.57,129.56,33.91047187]
[1726658141791,0.2526744,129.57,129.56,21.4051]
[1726658141987,0.2526744,129.57,129.55,0.05432148]
[1726658144086,0.2526744,129.57,129.55,1.59773107]
[1726658144990,0.2526744,129.57,129.55,12.55986633]
[1726658150083,0.2526744,129.57,129.55,11.01645674]
[1726658151881,0.2526744,129.57,129.56,1.54341275]
[1726658152980,0.2526744,129.57,129.55,11.01645674]
[1726658153300,0.2526744,129.57,129.55,0.05432148]
[1726658154484,0.2526744,129.57,129.55,1.59773838]
[1726658157504,0.2526744,129.57,129.55,0.05432148]
[1726658160098,0.2526744,129.57,129.55,1.59772571]
[1726658160293,0.2526744,129.57,129.55,0.05432148]
[1726658161683,24.0295584,129.57,129.55,0.05432148]
[1726658161883,28.06346686,129.57,129.55,0.05432148]
[1726658162099,16.0745,129.56,129.55,0.05432148]
[1726658162383,89.851384,129.56,129.47,0.230241]
[1726658162587,23.776884,129.55,129.47,0.230241]
[1726658163089,30.69678423,129.55,129.47,0.230241]
[1726658163404,6.0951,129.53,129.47,0.230241]
[1726658163809,14.12645589,129.53,129.47,0.230241]
[1726658164012,16.5018,129.52,129.47,0.230241]
[1726658164179,30.0,129.5,129.47,0.230241]